bitfinex-derivatives/quotes_BTCF0:USTF0_20251009
["timestamp","ask_amount","ask_price","bid_price","bid_amount"]
[1760034184354,0.68088923,120670.0,120660.0,1.18144945]
[1760034184549,0.38088923,120670.0,120660.0,1.18144945]
[1760034184952,0.62980268,120670.0,120660.0,1.18144945]
[1760034185251,0.46371833,120670.0,120660.0,0.166216]
[1760034185455,0.38088923,120670.0,120660.0,1.332416]
[1760034185754,0.44371833,120670.0,120660.0,1.332416]
[1760034186052,8.923e-05,120670.0,120660.0,2.08262605]
[1760034186249,8.923e-05,120670.0,120660.0,1.72182605]
[1760034186757,8.923e-05,120670.0,120660.0,1.332416]
[1760034186958,0.44371833,120670.0,120660.0,1.332416]
[1760034187449,0.08291833,120670.0,120660.0,1.332416]
[1760034187650,0.44371833,120670.0,120660.0,0.166216]
[1760034187850,0.51313833,120670.0,120660.0,0.932336]
[1760034188050,8.923e-05,120670.0,120660.0,0.932336]
[1760034188251,8.923e-05,120670.0,120660.0,0.166216]
[1760034188455,0.36088923,120670.0,120660.0,0.932256]
[1760034188752,0.123586,120660.0,120650.0,0.0636]
[1760034189052,0.57087413,120660.0,120650.0,0.90788295]
[1760034189356,7.413e-05,120660.0,120650.0,3.59468295]
[1760034189951,7.413e-05,120660.0,120650.0,3.59568295]
[1760034190754,0.08291013,120660.0,120650.0,3.59568295]
[1760034191055,0.08291013,120660.0,120650.0,3.59668295]
[1760034191452,0.44371013,120660.0,120650.0,1.59131]
[1760034191647,0.44371013,120660.0,120650.0,2.4462729]
[1760034192155,7.413e-05,120660.0,120650.0,2.83580295]
[1760034192351,7.413e-05,120660.0,120650.0,0.0656]
[1760034192352,1.24388013,120660.0,120650.0,0.0656]
[1760034192548,1.24388013,120660.0,120650.0,0.002]
[1760034192858,1.24388013,120660.0,120650.0,2.05084]
[1760034193053,1.24388013,120660.0,120650.0,1.502]
[1760034193260,1.24388013,120660.0,120650.0,2.27576]
[1760034194360,1.24388013,120660.0,120650.0,2.27476]
[1760034195360,1.24388013,120660.0,120650.0,2.27376]
[1760034198363,1.24388013,120660.0,120650.0,2.27272]
[1760034199066,1.24388013,120660.0,120650.0,1.5]
[1760034199269,1.24388013,120660.0,120650.0,2.27252]
[1760034199764,0.1235929,120650.0,120640.0,7.758e-05]
[1760034199966,0.84387249,120650.0,120640.0,0.81911758]
[1760034200267,0.84387249,120650.0,120640.0,1.56367758]
[1760034200461,0.84387249,120650.0,120640.0,1.64652728]
[1760034200661,0.84387249,120650.0,120640.0,2.41876728]
[1760034200964,0.84387249,120650.0,120640.0,2.41976728]
[1760034201867,0.84387249,120650.0,120640.0,2.42076728]
[1760034202064,0.84387249,120650.0,120640.0,2.42044728]
[1760034203465,0.84387249,120650.0,120640.0,2.41844728]
[1760034204771,5.959e-05,120650.0,120640.0,3.23304733]
[1760034204968,5.959e-05,120650.0,120640.0,3.59384733]
[1760034205471,5.959e-05,120650.0,120640.0,3.7029484]
[1760034206469,5.959e-05,120650.0,120640.0,3.18080396]
[1760034206664,0.80304786,120680.0,120670.0,0.1464291]
[1760034206972,0.06942,120680.0,120670.0,1.20675466]
[1760034207172,0.06942,120680.0,120670.0,0.1859791]
[1760034207369,0.80304116,120690.0,120680.0,0.1464223]
[1760034207571,0.8637856,120690.0,120680.0,0.1464223]
[1760034207775,0.86383205,120690.0,120680.0,0.1464223]
[1760034208172,1.26383205,120690.0,120670.0,0.38935628]
[1760034208478,0.11017,120650.0,120640.0,0.14652728]
[1760034208682,0.62101645,120650.0,120640.0,0.91772728]
[1760034208975,0.70385935,120650.0,120640.0,2.42072728]
[1760034209379,0.11021645,120650.0,120640.0,2.03588356]
[1760034209581,0.11021645,120650.0,120640.0,2.80988356]
[1760034209772,0.19305935,120650.0,120640.0,2.80988356]
[1760034209972,4.645e-05,120650.0,120640.0,3.60802356]
[1760034210168,4.645e-05,120650.0,120640.0,2.83402356]
[1760034210373,0.4436292,120670.0,120660.0,0.167796]
[1760034210570,0.6636292,120670.0,120660.0,0.942116]
[1760034211574,0.6636292,120670.0,120660.0,0.942076]
[1760034211777,0.6636292,120670.0,120660.0,0.167796]
[1760034211978,0.6636292,120670.0,120660.0,0.941796]
[1760034212476,0.7324192,120670.0,120660.0,0.941796]
[1760034212878,0.7324192,120670.0,120660.0,0.939796]
[1760034213182,0.7324192,120670.0,120660.0,0.165796]
[1760034213383,0.7324192,120670.0,120660.0,0.939636]
[1760034214676,0.6636292,120670.0,120660.0,0.939636]
[1760034214878,0.7324192,120670.0,120660.0,0.939636]
[1760034215680,0.7324192,120670.0,120640.0,1.58292728]
[1760034215681,0.1205829,120650.0,120640.0,1.58292728]
[1760034215883,0.5501729,120650.0,120640.0,0.92238728]
[1760034216780,0.5501729,120650.0,120640.0,2.42238728]
[1760034217085,0.5501729,120650.0,120640.0,1.56525758]
[1760034217292,0.5501729,120650.0,120640.0,2.33925758]
[1760034217786,0.5501729,120650.0,120640.0,2.42210728]
[1760034219381,0.5501729,120650.0,120640.0,1.64810728]
[1760034219582,1.99032918,120650.0,120640.0,0.83865758]
[1760034219783,1.6009729,120650.0,120640.0,0.83865758]
[1760034219978,1.6009729,120650.0,120640.0,2.42150728]
[1760034220187,1.99032918,120650.0,120640.0,1.50007758]
[1760034220376,1.59032918,120650.0,120640.0,0.83885758]
[1760034220686,1.2009729,120650.0,120640.0,0.92170728]
[1760034220887,1.2009729,120650.0,120640.0,2.42170728]
[1760034221482,1.6009729,120650.0,120640.0,2.42226728]
[1760034221682,1.2401729,120650.0,120640.0,1.64810728]
[1760034221984,1.2401729,120650.0,120640.0,2.42226728]
[1760034222383,0.8401729,120650.0,120640.0,2.42226728]
[1760034222785,0.8401729,120650.0,120640.0,1.64810728]
[1760034222986,0.8401729,120650.0,120640.0,2.42226728]
[1760034223291,0.6801729,120650.0,120640.0,2.42226728]
[1760034224585,0.6801729,120650.0,120640.0,1.64810728]
[1760034224788,0.6801729,120650.0,120640.0,2.42178728]
[1760034228190,0.6801729,120650.0,120640.0,2.42086728]
[1760034229889,0.2816329,120650.0,120640.0,1.67209728]
[1760034230092,0.4821029,120650.0,120640.0,2.42042728]
[1760034230489,0.4821029,120650.0,120640.0,1.64810728]
[1760034230894,0.4821029,120650.0,120640.0,2.42030728]
[1760034231686,0.5459909,120660.0,120650.0,0.1665129]
[1760034231992,0.46315,120670.0,120660.0,0.146726]
[1760034232192,0.3608,120670.0,120660.0,1.28890347]
[1760034232697,0.3608,120670.0,120660.0,1.39301644]
[1760034232892,0.3608,120670.0,120660.0,1.02065644]
[1760034233102,0.3608,120680.0,120670.0,0.1664991]
[1760034233392,0.3608,120680.0,120670.0,1.3753412]
[1760034233597,0.3608,120680.0,120670.0,1.04286373]
[1760034234290,0.39926,120700.0,120690.0,0.1664854]
[1760034234492,0.7420686,120700.0,120690.0,1.04305003]
[1760034234694,0.4436086,120700.0,120690.0,1.10879235]
[1760034235391,0.4636086,120700.0,120690.0,0.34522177]
[1760034235592,0.3818,120700.0,120690.0,0.23222772]
[1760034235796,0.3618,120700.0,120690.0,1.00454772]
[1760034236000,0.3618,120700.0,120690.0,1.10845934]
[1760034236198,0.3628,120700.0,120690.0,1.10845934]
[1760034236695,0.002,120700.0,120690.0,1.81755348]
[1760034236996,0.002,120700.0,120690.0,1.71364186]
[1760034237498,0.002,120700.0,120690.0,1.8173767]
[1760034237699,0.002,120700.0,120690.0,1.71348186]
[1760034237899,0.002,120700.0,120690.0,1.81719661]
[1760034238399,0.002,120700.0,120690.0,1.71348186]
[1760034238596,0.3608,120720.0,120710.0,0.1005817]
[1760034238793,0.3608,120720.0,120710.0,1.34924827]
[1760034239897,0.3618,120720.0,120710.0,1.74924827]
[1760034240099,0.3608,120740.0,120720.0,0.1705148]
[1760034240294,0.4435811,120740.0,120730.0,0.85721]
[1760034240598,0.3608,120740.0,120730.0,0.939998]
[1760034240796,0.3608,120740.0,120730.0,1.339998]
[1760034240997,0.3608,120740.0,120730.0,0.567998]
[1760034241191,0.3608,120740.0,120730.0,1.340358]
[1760034241398,0.3628,120740.0,120730.0,1.340358]
[1760034241592,0.3628,120740.0,120730.0,1.40707842]
[1760034241793,0.3628,120740.0,120730.0,0.63471842]
[1760034241993,0.3628,120740.0,120730.0,1.51026827]
[1760034242295,0.3628,120740.0,120730.0,1.40691842]
[1760034242495,0.3628,120740.0,120730.0,0.94409256]
[1760034242795,0.3628,120740.0,120730.0,1.71601256]
[1760034242994,0.00017189,120740.0,120730.0,0.94409256]
[1760034243294,0.00017189,120740.0,120730.0,1.71597256]
[1760034243596,0.3608,120750.0,120740.0,0.0827811]
[1760034243796,0.3608,120760.0,120750.0,0.1659843]
[1760034244099,0.3608,120760.0,120750.0,0.9377043]
[1760034244295,0.46617,120760.0,120730.0,0.3608]
[1760034244497,0.1881648,120720.0,120710.0,0.06543]
[1760034244693,0.67617,120720.0,120710.0,0.83907]
[1760034244897,0.5229448,120720.0,120710.0,0.83907]
[1760034245202,0.44015,120720.0,120710.0,0.83915]
[1760034245498,0.4435948,120720.0,120710.0,0.83915]
[1760034245696,0.4435948,120720.0,120710.0,2.13367]
[1760034245898,0.4435948,120720.0,120710.0,2.90743]
[1760034246097,0.4435948,120720.0,120710.0,0.06643]
[1760034246297,0.4435948,120720.0,120710.0,2.90839]
[1760034246897,0.4435948,120720.0,120710.0,2.90939]
[1760034247103,0.4435948,120720.0,120710.0,2.90931]
[1760034247304,0.4435948,120720.0,120710.0,3.30911]
[1760034247702,0.4435948,120720.0,120710.0,0.46743]
[1760034248207,0.4435948,120720.0,120710.0,3.30887]
[1760034248600,0.4435948,120720.0,120710.0,3.3915117]
[1760034249104,0.0827948,120720.0,120710.0,3.3913517]
[1760034249602,0.0827948,120720.0,120710.0,3.3912717]
[1760034250098,0.0827948,120720.0,120710.0,3.3911117]
[1760034251006,0.0827948,120720.0,120710.0,3.3910717]
[1760034252097,0.0827948,120720.0,120710.0,3.3905917]
[1760034252298,0.4435923,120730.0,120720.0,0.1482248]
[1760034252500,0.4829357,120740.0,120730.0,0.06543]
[1760034252695,0.8289557,120740.0,120730.0,0.06543]
[1760034253106,0.7629357,120740.0,120730.0,0.148218]
[1760034253499,0.8289557,120740.0,120730.0,0.06543]
[1760034254007,0.7235857,120740.0,120730.0,0.148218]
[1760034254604,0.7235857,120740.0,120730.0,0.920258]
[1760034254799,0.7235857,120740.0,120730.0,0.98613084]
[1760034255000,0.7896057,120740.0,120720.0,0.02865]
[1760034255200,0.1221755,120680.0,120650.0,2.1508427]
[1760034255399,0.40015,120680.0,120660.0,0.77164]
[1760034255700,0.3608,120680.0,120670.0,0.7774]
[1760034255903,0.4829679,120690.0,120670.0,0.0828291]
[1760034256102,0.3608,120680.0,120670.0,0.8602291]
[1760034256495,0.3608,120680.0,120670.0,0.92717482]
[1760034257101,0.4436223,120680.0,120670.0,0.92717482]
[1760034257302,0.4436223,120680.0,120670.0,0.92917482]
[1760034257701,0.3608,120680.0,120670.0,0.92917482]
[1760034258009,0.3608,120680.0,120670.0,0.92901482]
[1760034258705,0.4436199,120690.0,120680.0,0.0828223]
[1760034258706,0.3608,120690.0,120680.0,0.0828223]
[1760034258906,0.3608,120690.0,120680.0,0.39219644]
[1760034260509,0.86617,120690.0,120670.0,0.46414985]
[1760034260807,0.188206,120660.0,120650.0,0.25157537]
[1760034261110,0.909806,120660.0,120650.0,2.28712]
[1760034261305,1.309806,120660.0,120650.0,1.5]
[1760034261511,1.309806,120660.0,120650.0,2.28688]
[1760034262000,1.309806,120660.0,120650.0,1.5]
[1760034262206,1.309806,120660.0,120650.0,2.28668]
[1760034262807,1.309806,120660.0,120650.0,2.28868]
[1760034263110,1.309806,120660.0,120650.0,2.28872]
[1760034263420,1.309806,120660.0,120650.0,2.28672]
[1760034264012,1.309806,120660.0,120650.0,2.28644]
[1760034269006,1.309806,120660.0,120650.0,2.3692828]
[1760034269211,0.549006,120660.0,120650.0,1.89221694]
[1760034269407,0.4829859,120660.0,120650.0,2.67673694]
[1760034269602,0.4829859,120660.0,120650.0,2.67665694]
[1760034269909,0.40015,120660.0,120650.0,1.89221694]
[1760034270105,0.3608,120660.0,120650.0,2.67677694]
[1760034270509,0.40015,120670.0,120660.0,0.0828359]
[1760034270709,0.42015,120670.0,120660.0,1.17673004]
[1760034271107,0.3608,120670.0,120660.0,0.39221004]
[1760034271311,0.3608,120670.0,120660.0,1.17661004]
[1760034273114,0.3608,120670.0,120660.0,1.17761004]
[1760034273413,0.3608,120680.0,120670.0,0.0828291]
[1760034273612,0.3608,120680.0,120670.0,0.39220324]
[1760034273813,0.4829679,120690.0,120680.0,0.0828222]
[1760034274009,0.17935,120690.0,120680.0,0.45968647]
[1760034274210,0.14,120690.0,120680.0,2.00408647]
[1760034274516,0.4840463,120720.0,120710.0,0.0828016]
[1760034274711,0.69125,120720.0,120710.0,0.0828016]
[1760034274911,0.45125,120720.0,120710.0,0.8665216]
[1760034275309,0.3608,120720.0,120710.0,0.8665216]
[1760034277313,0.3608,120720.0,120710.0,2.9350816]
[1760034278017,0.40125,120730.0,120720.0,0.0827948]
[1760034278216,0.58125,120730.0,120720.0,0.39216894]
[1760034280807,0.58125,120730.0,120720.0,1.24089542]
[1760034282219,0.40125,120730.0,120720.0,1.24045542]
[1760034282416,0.40125,120740.0,120730.0,0.0827879]
[1760034282720,0.72125,120740.0,120730.0,0.8643879]
[1760034282915,0.72125,120740.0,120730.0,1.17372204]
[1760034283917,0.40125,120740.0,120730.0,1.17372204]
[1760034287516,0.40125,120740.0,120730.0,1.25324695]
[1760034288122,0.484031,120740.0,120730.0,0.0827879]
[1760034288421,0.484031,120740.0,120730.0,3.31964695]
[1760034288621,0.40125,120740.0,120730.0,3.31964695]
[1760034289723,0.40125,120740.0,120730.0,0.47168695]
[1760034289926,0.40125,120740.0,120730.0,3.31956695]
[1760034290824,0.40125,120740.0,120730.0,0.47168695]
[1760034291026,0.40125,120740.0,120730.0,3.31908695]
[1760034292224,0.484031,120740.0,120730.0,3.31908695]
[1760034293025,0.40125,120740.0,120730.0,3.31908695]
[1760034293919,0.484031,120740.0,120730.0,3.31864695]
[1760034294315,0.484031,120740.0,120730.0,2.53952695]
[1760034294619,0.484031,120740.0,120730.0,3.31784695]
[1760034296128,0.484031,120740.0,120730.0,3.31768695]
[1760034300225,0.40125,120740.0,120730.0,3.31768695]
[1760034300424,0.3608,120740.0,120730.0,3.31768695]
[1760034300630,0.4840242,120750.0,120740.0,0.0827811]
[1760034300835,0.7540242,120750.0,120740.0,0.47168015]
[1760034301132,0.7540242,120750.0,120740.0,1.24820015]
[1760034301326,0.6308,120750.0,120740.0,0.47168015]
[1760034301525,0.6308,120750.0,120740.0,1.24824015]
[1760034301727,0.6308,120750.0,120740.0,0.47168015]
[1760034301926,0.6308,120750.0,120740.0,0.57503]
[1760034302230,0.6308,120750.0,120740.0,1.35163]
[1760034303526,0.6308,120750.0,120740.0,1.35159]
[1760034303726,0.3708,120750.0,120740.0,1.35115]
[1760034304031,0.3708,120750.0,120740.0,1.24780015]
[1760034304232,0.3708,120750.0,120740.0,0.47168015]
[1760034304432,0.3708,120750.0,120740.0,1.35107]
[1760034304931,0.3708,120750.0,120740.0,1.24772015]
[1760034305729,0.01,120750.0,120740.0,0.87168015]
[1760034306026,0.3608,120760.0,120750.0,0.0827742]
[1760034306226,0.5708,120760.0,120750.0,0.47167325]
[1760034306429,0.5708,120760.0,120750.0,1.24711325]
[1760034306937,0.3608,120760.0,120750.0,1.24699325]
[1760034307437,0.3608,120760.0,120750.0,1.35566894]
[1760034308128,0.3608,120760.0,120750.0,0.58034894]
[1760034308434,0.3608,120760.0,120750.0,3.42282894]
[1760034309333,0.3608,120760.0,120750.0,0.58034894]
[1760034309638,0.3608,120760.0,120750.0,3.42278894]
[1760034310536,0.3608,120760.0,120750.0,0.58034894]
[1760034310736,0.3608,120760.0,120750.0,3.42242894]
[1760034312437,0.3608,120760.0,120750.0,3.42775006]
[1760034315137,0.3808,120760.0,120750.0,3.42775006]
[1760034319837,0.3808,120760.0,120750.0,2.65311006]
[1760034320038,0.3808,120760.0,120750.0,3.42527006]
[1760034321542,0.3808,120760.0,120750.0,4.92527006]
[1760034324240,0.3808,120760.0,120750.0,2.08567006]
[1760034324537,0.3808,120760.0,120750.0,2.85691006]
[1760034327236,0.3808,120760.0,120750.0,2.08567006]
[1760034327432,0.3808,120760.0,120750.0,2.33445743]
[1760034327640,0.39776,120780.0,120770.0,0.0827606]
[1760034327943,0.67776,120780.0,120770.0,0.68418861]
[1760034328344,0.67776,120780.0,120770.0,1.45470861]
[1760034329341,0.67776,120780.0,120770.0,1.35085534]
[1760034329736,0.67776,120780.0,120770.0,1.52074419]
[1760034330248,0.7605137,120780.0,120770.0,1.52074419]
[1760034330543,1.97366581,120780.0,120770.0,0.16988885]
[1760034330847,1.72487844,120780.0,120770.0,0.94048203]
[1760034331547,1.72487844,120780.0,120770.0,0.16992203]
[1760034332245,1.72487844,120780.0,120770.0,0.94024203]
[1760034332649,1.32487844,120780.0,120770.0,0.94012203]
[1760034333647,1.07609107,120780.0,120770.0,0.94012203]
[1760034334947,1.07609107,120780.0,120770.0,0.83620988]
[1760034335149,1.07609107,120780.0,120770.0,0.94021549]
[1760034336742,1.07609107,120780.0,120770.0,0.83552988]
[1760034336943,1.32487844,120780.0,120770.0,0.83552988]
[1760034338245,1.32487844,120780.0,120770.0,0.06600988]
[1760034338458,1.32487844,120780.0,120770.0,0.7694]
[1760034339444,0.1829906,120770.0,120760.0,0.10400561]
[1760034339647,1.35136534,120770.0,120760.0,0.87296561]
[1760034339951,0.1206074,120760.0,120750.0,1.64822552]
[1760034340251,1.26898214,120760.0,120750.0,2.41714552]
[1760034340455,1.26898214,120760.0,120750.0,2.26892]
[1760034340646,1.02019477,120760.0,120750.0,2.26892]
[1760034340847,1.02019477,120760.0,120750.0,1.5827743]
[1760034341047,1.02019477,120760.0,120750.0,2.3516143]
[1760034341653,1.02019477,120760.0,120750.0,2.41645652]
[1760034342150,0.39864,120760.0,120750.0,2.54519126]
[1760034342354,0.3608,120760.0,120750.0,2.14519126]
[1760034342555,0.3608,120760.0,120750.0,3.01780968]
[1760034342744,0.3608,120760.0,120750.0,2.24924968]
[1760034342944,0.3608,120760.0,120750.0,2.91379126]
[1760034343150,0.39864,120760.0,120750.0,2.91379126]
[1760034343349,0.39864,120760.0,120750.0,3.01774305]
[1760034343552,0.39864,120760.0,120750.0,2.76995568]
[1760034343851,0.39864,120760.0,120750.0,4.83715568]
[1760034344556,0.39864,120760.0,120750.0,2.00135568]
[1760034344746,0.39864,120760.0,120750.0,4.83691568]
[1760034346554,0.39864,120760.0,120750.0,4.73296389]
[1760034347557,0.03784,120770.0,120760.0,0.0827674]
[1760034347856,0.14784,120770.0,120760.0,0.68426595]
[1760034348359,0.2306005,120770.0,120760.0,0.68426595]
[1760034348752,0.5914005,120770.0,120760.0,0.68426595]
[1760034348953,0.5914005,120770.0,120760.0,1.45194595]
[1760034349456,0.5914005,120770.0,120760.0,1.28612719]
[1760034350560,0.5914005,120770.0,120760.0,1.18220338]
[1760034352662,0.5914005,120770.0,120760.0,1.18172338]
[1760034352863,0.5914005,120770.0,120760.0,1.18128338]
[1760034353162,0.5914005,120770.0,120760.0,0.41452338]
[1760034353363,0.5914005,120770.0,120760.0,1.18124338]
[1760034355358,0.4708,120770.0,120760.0,0.74627936]
[1760034355560,0.3608,120780.0,120770.0,0.0827606]
[1760034355866,0.3808,120780.0,120770.0,1.18079658]
[1760034356067,0.39776,120790.0,120780.0,0.0827537]
[1760034356257,0.3608,120790.0,120780.0,0.41450968]
[1760034356462,0.4108,120790.0,120780.0,1.18086968]
[1760034356659,0.4108,120790.0,120780.0,1.3290952]
[1760034356861,0.4108,120790.0,120780.0,1.33501716]
[1760034357871,0.05,120790.0,120780.0,1.33501716]
[1760034358373,0.5448603,120800.0,120790.0,0.0827468]
[1760034358562,0.8048603,120800.0,120790.0,0.41450278]
[1760034359866,0.72212,120800.0,120790.0,0.41450278]
[1760034360168,0.65714,120800.0,120790.0,1.18018278]
[1760034360969,0.26,120800.0,120790.0,1.14625876]
[1760034361176,0.26,120800.0,120790.0,2.27293876]
[1760034361475,0.10361946,120820.0,120810.0,0.0827331]
[1760034361665,0.10361946,120820.0,120810.0,3.24732908]
[1760034362268,0.03634,120820.0,120810.0,3.24728908]
[1760034362870,0.03634,120820.0,120810.0,3.24724908]
[1760034363873,0.03634,120820.0,120810.0,0.41448908]
[1760034364374,0.03634,120820.0,120810.0,3.24688908]
[1760034365280,0.03634,120820.0,120810.0,3.3502479]
[1760034366372,0.03634,120820.0,120810.0,3.24688908]
[1760034366572,0.39714,120820.0,120810.0,0.41448908]
[1760034366773,0.39714,120820.0,120810.0,3.24624908]
[1760034367982,0.39714,120830.0,120820.0,0.0827263]
[1760034368174,0.53714,120830.0,120820.0,0.41448228]
[1760034369272,0.53714,120830.0,120820.0,0.48211905]
[1760034369484,0.53714,120830.0,120820.0,1.24679905]
[1760034369680,0.53714,120830.0,120820.0,1.35015787]
[1760034370485,0.53714,120830.0,120820.0,1.24679905]
[1760034370985,0.53714,120830.0,120820.0,3.31319905]
[1760034371588,0.53714,120830.0,120820.0,3.31287905]
[1760034372084,0.53714,120830.0,120820.0,3.31283905]
[1760034372478,0.53714,120830.0,120820.0,0.48211905]
[1760034372782,0.53714,120830.0,120820.0,3.31275905]
[1760034373178,0.53714,120830.0,120820.0,2.54851905]
[1760034373379,0.53714,120830.0,120820.0,3.31263905]
[1760034374987,0.53714,120830.0,120820.0,2.54851905]
[1760034375489,0.53714,120830.0,120820.0,3.31227905]
[1760034375676,0.53714,120830.0,120820.0,0.48211905]
[1760034375875,0.53714,120830.0,120820.0,3.31203905]
[1760034376075,1.0836594,120830.0,120820.0,0.15036307]
[1760034376282,0.1849563,120820.0,120810.0,2.1490078]
[1760034376588,0.5457563,120820.0,120810.0,3.23476378]
[1760034376977,0.1211631,120810.0,120800.0,0.33175598]
[1760034377183,0.5457631,120810.0,120800.0,3.31071305]
[1760034377778,0.5457631,120810.0,120800.0,0.48091305]
[1760034378083,0.5457631,120810.0,120800.0,1.24447305]
[1760034378280,0.5457631,120810.0,120800.0,0.39817305]
[1760034378488,0.18497,120800.0,120790.0,2.25234562]
[1760034378782,0.54577,120800.0,120790.0,2.93299882]
[1760034378987,0.86577,120800.0,120780.0,0.42033488]
[1760034379188,0.46303,120790.0,120780.0,2.1548189]
[1760034379388,0.46303,120790.0,120780.0,0.0885789]
[1760034379590,0.46303,120790.0,120780.0,2.9181789]
[1760034380188,0.46303,120790.0,120780.0,2.1548189]
[1760034380388,0.5457768,120790.0,120780.0,0.41450568]
[1760034380589,0.5457768,120790.0,120780.0,1.17782568]
[1760034380891,0.5457768,120790.0,120780.0,0.47968926]
[1760034381187,0.46303,120790.0,120780.0,1.24900959]
[1760034381490,0.39923,120790.0,120780.0,1.24896959]
[1760034382391,0.46303,120790.0,120780.0,1.24892959]
[1760034385293,0.39923,120790.0,120780.0,1.24892959]
[1760034385792,0.46303,120790.0,120780.0,1.24836959]
[1760034387591,0.46303,120790.0,120780.0,1.24820959]
[1760034387890,0.46303,120790.0,120780.0,1.24812959]
[1760034388091,0.39923,120790.0,120780.0,1.24812959]
[1760034388589,0.39923,120790.0,120780.0,0.48572959]
[1760034388590,0.46303,120790.0,120780.0,0.48572959]
[1760034388789,0.39923,120790.0,120780.0,1.24804959]
[1760034390093,0.39923,120820.0,120810.0,0.0827332]
[1760034390396,0.39651,120830.0,120820.0,0.0827263]
[1760034390593,0.39651,120830.0,120820.0,2.5844011]
[1760034390784,0.39651,120830.0,120820.0,3.3474411]
[1760034390990,0.39651,120830.0,120820.0,3.24408228]
[1760034391293,0.39651,120830.0,120820.0,0.41448228]
[1760034391491,0.39651,120830.0,120820.0,3.24408228]
[1760034391790,0.39651,120830.0,120820.0,2.48104228]
[1760034391997,0.39651,120830.0,120820.0,3.24416228]
[1760034392196,0.39651,120830.0,120820.0,3.30974785]
[1760034392500,0.39651,120850.0,120840.0,0.0827126]
[1760034392794,0.66651,120850.0,120840.0,1.61271867]
[1760034392990,0.66651,120850.0,120840.0,1.50930456]
[1760034393196,0.47651,120850.0,120840.0,1.50930456]
[1760034393499,0.47651,120850.0,120840.0,1.61263945]
[1760034393796,0.39651,120850.0,120840.0,1.61263945]
[1760034394196,0.3608,120850.0,120840.0,1.61263945]
[1760034395101,0.39651,120850.0,120840.0,0.84955945]
[1760034395293,0.39651,120860.0,120850.0,0.0827058]
[1760034395499,0.66651,120860.0,120850.0,1.17718178]
[1760034396393,0.39651,120870.0,120860.0,0.0826989]
[1760034396597,0.69651,120870.0,120860.0,0.42088654]
[1760034397298,0.69651,120870.0,120860.0,3.24948654]
[1760034397696,0.39651,120870.0,120860.0,3.24944654]
[1760034398296,0.3608,120870.0,120860.0,3.24944654]
[1760034398703,0.3608,120870.0,120860.0,2.48704654]
[1760034399000,0.39651,120880.0,120870.0,0.0826921]
[1760034399193,0.40651,120880.0,120870.0,3.24268808]
[1760034399396,0.40651,120880.0,120870.0,2.48048808]
[1760034399598,0.40651,120880.0,120870.0,3.24264808]
[1760034400903,0.46611,120880.0,120870.0,3.30685473]
[1760034401204,0.62611,120880.0,120870.0,3.30685473]
[1760034401906,0.62611,120880.0,120870.0,0.47897473]
[1760034402308,0.62611,120880.0,120870.0,1.24069473]
[1760034402708,0.03571,120830.0,120820.0,0.0827263]
[1760034402903,0.45611,120830.0,120820.0,0.48209258]
[1760034403104,0.81691,120830.0,120820.0,0.39936628]
[1760034403306,0.81691,120830.0,120820.0,1.24809258]
[1760034403706,0.81691,120830.0,120820.0,0.48209258]
[1760034403906,0.75731,120830.0,120820.0,0.48209258]
[1760034404203,0.75731,120830.0,120820.0,0.48409258]
[1760034404204,0.03571,120830.0,120820.0,0.48409258]
[1760034404409,0.03571,120830.0,120820.0,1.64989258]
[1760034404602,0.39651,120840.0,120830.0,0.0827195]
[1760034404801,0.39651,120840.0,120830.0,1.18023548]
[1760034405306,0.39651,120840.0,120830.0,1.18019548]
[1760034405507,0.39651,120840.0,120830.0,1.15697206]
[1760034405704,0.45611,120840.0,120830.0,0.0827195]
[1760034405904,0.45611,120840.0,120830.0,3.22365206]
[1760034406206,0.45611,120840.0,120830.0,2.9151195]
[1760034406407,0.45611,120840.0,120830.0,2.9161195]
[1760034407812,0.45611,120840.0,120830.0,2.9160795]
[1760034408807,0.45611,120840.0,120830.0,2.1505595]
[1760034409004,0.45611,120840.0,120830.0,2.9156395]
[1760034409208,0.45611,120840.0,120830.0,0.0847195]
[1760034409404,0.45611,120840.0,120830.0,0.47302163]
[1760034409612,0.45611,120840.0,120830.0,3.30390163]
[1760034410818,0.45611,120840.0,120830.0,3.30366163]
[1760034411021,0.39651,120840.0,120830.0,3.30366163]
[1760034413024,0.45557,120840.0,120830.0,0.0847195]
[1760034413217,0.45557,120840.0,120830.0,2.53890163]
[1760034413419,0.45557,120840.0,120830.0,3.30330163]
[1760034413811,0.45557,120840.0,120830.0,2.53890163]
[1760034414018,0.45557,120840.0,120830.0,3.30322163]
[1760034416322,0.45557,120840.0,120830.0,2.53890163]
[1760034416720,0.45557,120840.0,120830.0,3.30274163]
[1760034418023,0.39651,120840.0,120830.0,3.30274163]
[1760034418818,0.39651,120840.0,120830.0,3.40607652]
[1760034419121,0.39651,120840.0,120830.0,2.64223652]
[1760034419318,0.39651,120850.0,120830.0,2.53890163]
[1760034419528,0.39651,120850.0,120840.0,1.23453473]
[1760034419821,0.39651,120850.0,120840.0,1.33786962]
[1760034420521,0.39651,120850.0,120840.0,1.33782962]
[1760034421025,0.4792158,120850.0,120840.0,1.33781596]
[1760034421823,0.39651,120850.0,120840.0,1.33781596]
[1760034422015,0.39651,120850.0,120840.0,1.33881596]
[1760034422420,0.39651,120850.0,120840.0,0.57553596]
[1760034422615,0.5402258,120850.0,120840.0,0.18723383]
[1760034422820,0.5402258,120850.0,120840.0,1.33853596]
[1760034423117,0.45752,120850.0,120840.0,1.33849596]
[1760034423319,0.39651,120850.0,120840.0,1.33849596]
[1760034425221,0.39651,120850.0,120840.0,1.23497473]
[1760034425420,0.39651,120850.0,120840.0,1.34359046]
[1760034425818,0.39651,120850.0,120840.0,1.44711169]
[1760034426220,0.39651,120850.0,120840.0,1.34359046]
[1760034426419,0.39651,120850.0,120840.0,0.58063046]
[1760034426718,0.39651,120850.0,120840.0,1.34307046]
[1760034427024,0.39651,120850.0,120840.0,0.58063046]
[1760034427322,0.39651,120850.0,120840.0,1.34307046]
[1760034427724,0.39651,120850.0,120840.0,1.34303046]
[1760034428224,0.39651,120850.0,120840.0,1.70895169]
[1760034428725,0.39651,120850.0,120840.0,1.70795169]
[1760034428923,0.39651,120850.0,120840.0,1.70895169]
[1760034429816,0.39651,120850.0,120840.0,0.94655169]
[1760034430022,0.39651,120850.0,120840.0,3.77427169]
[1760034430023,0.45752,120850.0,120840.0,3.77427169]
[1760034430724,0.45752,120850.0,120840.0,2.74991169]
[1760034430926,0.5402258,120850.0,120840.0,3.26329276]